fUST/lending_fUST_20240503
["ID","MTS","AMOUNT","RATE_DAILY","PERIOD"]
[325263972,1714669550417,-314.71485559,0.00039997,4]
[325263973,1714669550437,-6015.54056263,0.00039998,4]
[325263974,1714669550455,-213.52850215,0.00039998,2]
[325263975,1714669550474,-3574.2980918,0.00039998,4]
[325263976,1714669550494,-308.84790387,0.00039998,4]
[325263977,1714669550514,-522.12800672,0.00039998,4]
[325263978,1714669550532,-154.78330338,0.00039998,4]
[325263979,1714669550552,-164.09674352,0.00039998,4]
[325263980,1714669550570,-526.91179477,0.00039998,4]
[325263981,1714669550590,-271.88209056,0.00039998,4]
[325263982,1714669550609,-497.26542791,0.00039999,7]
[325263983,1714669550627,-46240.81730058,0.00039999,4]
[325263984,1714669550645,-3000.0,0.00039999,10]
[325263985,1714669550663,-2120.48109043,0.00039999,10]
[325263986,1714669550681,-500.0,0.00039999,31]
[325263987,1714669550699,-556.94969108,0.00039999,31]
[325263988,1714669550816,-500.0,0.00039999,31]
[325263989,1714669550836,-442.0532064,0.00039999,31]
[325263990,1714669550860,-500.0,0.00039999,31]
[325263991,1714669550885,-500.0,0.00039999,31]
[325263992,1714669550904,-500.0,0.00039999,31]
[325263993,1714669550924,-49196.71509611,0.0004,120]
[325264007,1714669832460,-3387.06118485,0.000349,2]
[325264008,1714669832470,-322.45196489,0.00034998,4]
[325264009,1714669832479,-1764.8655874,0.00034999,4]
[325264010,1714669832488,-1246.10734373,0.00035,4]
[325264011,1714669832498,-331.5649609,0.000399,2]
[325264012,1714669832507,-5773.67,0.0003999,3]
[325264013,1714669832516,-4811.39,0.0003999,3]
[325264014,1714669832526,-4009.49,0.0003999,3]
[325264015,1714669832535,-213.52850215,0.00039997,2]
[325264016,1714669832545,-601.48391974,0.00039998,2]
[325264017,1714669832554,-424.54043347,0.00039998,4]
[325264018,1714669832563,-154.78330338,0.00039998,4]
[325264019,1714669832574,-314.71485559,0.00039998,4]
[325264020,1714669832583,-526.91179477,0.00039998,4]
[325264021,1714669832592,-271.88209056,0.00039998,4]
[325264022,1714669832601,-522.12800672,0.00039998,4]
[325264023,1714669832610,-308.84790387,0.00039998,4]
[325264024,1714669832620,-3574.2980918,0.00039998,4]
[325264025,1714669832629,-164.09674352,0.00039998,4]
[325264026,1714669832638,-6015.54056263,0.00039999,4]
[325264027,1714669832648,-1305.87134454,0.00039999,4]
[325264044,1714669839022,-3341.24,0.0003999,3]
[325264045,1714669839032,-44934.94595604,0.00039999,4]
[325264046,1714669839042,-497.26542791,0.0004,7]
[325264047,1714669839151,-95287.64611094,0.0004,120]
[325264048,1714669839272,-29000.0,0.0004,120]
[325264113,1714669840811,-19075.84705365,0.0004,120]
[325264131,1714669843648,-18016.9756978,0.0004,120]
[325264132,1714669843741,-83859.38488598,0.0004,120]
[325264173,1714669846452,-5902.60000001,0.0004,120]
[325264175,1714669846505,-187923.83158391,0.0004,120]
[325264176,1714669870454,154.70605849,9.999e-05,2]
[325264177,1714669871363,1541.63865054,9.999e-05,2]
[325264178,1714669902499,800.4153905,9.999e-05,2]
[325264182,1714669923601,160.483646,0.00019541,2]
[325264183,1714670045683,2018.1072372,0.00019815,2]
[325264184,1714670065605,700.80098133,9.999e-05,2]
[325264186,1714670136491,193.89409139,9.999e-05,2]
[325264194,1714670437318,319.04491487,0.00019451,2]
[325264195,1714670437354,232.61596192,0.00019451,2]
[325264196,1714670437391,500.0,0.00019451,2]
[325264197,1714670437427,500.0,0.00019451,2]
[325264198,1714670437465,500.0,0.00019451,2]
[325264199,1714670437502,452.97843904,0.00019451,2]
[325264200,1714670437544,500.0,0.00019451,2]
[325264201,1714670437580,308.75654165,0.00019451,2]
[325264202,1714670437618,265.07159918,0.00019451,2]
[325264203,1714670437656,486.30132433,0.00019451,2]
[325264204,1714670438843,500.0,0.00019178,2]
[325264205,1714670438881,417.68578369,0.00019178,2]
[325264206,1714670438917,242.63120508,0.00019178,2]
[325264207,1714670438955,209.78945413,0.00019178,2]
[325264208,1714670438991,170.64215763,0.00019178,2]
[325264209,1714670439035,500.0,0.00019178,2]
[325264210,1714670439086,500.0,0.00019178,2]
[325264211,1714670439219,500.0,0.00019178,2]
[325264212,1714670440344,500.0,0.00019178,2]
[325264214,1714670491374,2126.777712,0.00019815,2]
[325264215,1714670674047,346.60994642,0.00019451,2]
[325264216,1714670674086,313.9782694,0.00019451,2]
[325264217,1714670674126,327.88782822,0.00019451,2]
[325264218,1714670674163,422.70056757,0.00019451,2]
[325264219,1714670675653,296.73801751,0.00019178,2]
[325264220,1714670707752,200.0,0.0002,2]
[325264221,1714670824209,784.43135358,0.000189,2]
[325264222,1714670826157,-1459.07186912,0.000234,2]
[325264223,1714670826177,-784.43135358,0.000239,2]
[325264224,1714670826203,-761.37215679,0.00025,2]
[325264225,1714670826223,-2000.0,0.000266,2]
[325264226,1714670826244,-2000.0,0.000266,2]
[325264227,1714670826265,-164.40785177,0.00028393,2]
[325264228,1714670826298,-163.264233,0.00028493,2]
[325264229,1714670826320,-157.926899,0.00028493,2]
[325264230,1714670826341,-150.0,0.00028796,3]
[325264231,1714670826361,-784.43135358,0.000289,2]
[325264232,1714670826382,-164.40785177,0.00030037,2]
[325264233,1714670826403,-150.0,0.00030985,3]
[325264234,1714670826423,-164.40785177,0.0003168,2]
[325264235,1714670826443,-150.0,0.00033174,5]
[325264236,1714670826464,-270.906492,0.00033288,2]
[325264237,1714670826483,-1902.9434084,0.00033311,2]
[325264238,1714670826502,-164.40785177,0.00033324,2]
[325264239,1714670826521,-11934.47417077,0.00034029,4]
[325264240,1714670826540,-202.91498895,0.00034048,2]
[325264241,1714670826558,-189.0935612,0.00034898,2]
[325264242,1714670826578,-164.40785177,0.00034967,2]
[325264243,1714670826598,-150.0,0.00035363,7]
[325264244,1714670826617,-214.616746,0.00035616,120]
[325264245,1714670826636,-164.40785177,0.00036611,2]
[325264246,1714670826659,-150.0,0.00037552,7]
[325264247,1714670826678,-489.94478985,0.00037998,4]
[325264248,1714670826698,-164.40785177,0.00038254,2]
[325264249,1714670826718,-157.926899,0.00038356,2]
[325264250,1714670826740,-150.0,0.00039741,14]
[325264251,1714670826761,-514.68112306,0.0003975,2]
[325264252,1714670826780,-550.09434991,0.00039898,4]
[325264253,1714670826800,-1621.94326618,0.00039898,4]
[325264254,1714670826821,-212.29957186,0.00039898,4]
[325264255,1714670826841,-259.80757327,0.00039898,4]
[325264256,1714670826862,-154.76784823,0.00039898,4]
[325264257,1714670826881,-522.12800672,0.00039898,4]
[325264258,1714670826899,-154.76784823,0.00039898,4]
[325264259,1714670826921,-193.78692561,0.00039898,4]
[325264260,1714670826943,-164.40785177,0.00039898,2]
[325264261,1714670826962,-600.23325949,0.000399,2]
[325264262,1714670826983,-2000.0,0.000399,2]
[325264263,1714670827002,-33333.0,0.000399,5]
[325264264,1714670827111,-3039.4,0.00039988,3]
[325264265,1714670827132,-206.84821855,0.00039997,4]
[325264266,1714670827156,-1630.80186327,0.00039998,7]
[325264267,1714670827175,-861.20419007,0.00039998,4]
[325264268,1714670827198,-1890.97658318,0.00039998,4]
[325264269,1714670827217,-155.04940114,0.00039998,4]
[325264270,1714670827237,-5390.11527741,0.00039998,4]
[325264271,1714670827256,-154.98114259,0.00039998,4]
[325264272,1714670827279,-939.47409396,0.00039998,4]
[325264273,1714670827298,-730.70803192,0.00039998,4]
[325264274,1714670827318,-157.80708891,0.00039998,4]
[325264275,1714670827338,-514.30635662,0.00039998,4]
[325264276,1714670827359,-189.3964787,0.00039998,2]
[325264277,1714670827379,-67426.19859378,0.00039998,4]
[325264278,1714670827398,-272.83575254,0.00039998,4]
[325264279,1714670827419,-329.99389325,0.00039998,4]
[325264280,1714670827438,-603.84859883,0.00039998,4]
[325264281,1714670827458,-5460.88699735,0.00039998,4]
[325264282,1714670827477,-155.32673225,0.00039998,4]
[325264283,1714670827497,-999.0,0.00039998,7]
[325264284,1714670827517,-999.0,0.00039998,10]
[325264285,1714670827537,-999.0,0.00039998,13]
[325264286,1714670827557,-999.0,0.00039998,16]
[325264287,1714670827576,-999.0,0.00039998,19]
[325264288,1714670827595,-6335.11082381,0.00039999,4]
[325264289,1714670836218,151.48563567,0.0002,2]
[325264290,1714670846262,-2579.50608009,0.000399,2]
[325264291,1714670846282,-4745.51,0.0003999,3]
[325264292,1714670846306,-3954.59,0.0003999,3]
[325264293,1714670846325,-8934.31957422,0.00039999,4]
[325264294,1714670846344,-151.0,0.00039999,2]
[325264295,1714670846364,-151.0,0.00039999,2]
[325264296,1714670846385,-97.41970569,0.00039999,2]
[325264297,1714670853210,-214.616746,0.00035616,120]
[325264298,1714670853230,-3295.49,0.0003999,3]
[325264299,1714670853250,-53.58029431,0.00039999,2]
[325264300,1714670853269,-151.0,0.00039999,2]
[325264301,1714670853292,-151.0,0.00039999,2]
[325264302,1714670853313,-999.0,0.00039999,22]
[325264303,1714670853334,-999.0,0.00039999,25]
[325264304,1714670853354,-999.0,0.00039999,28]
[325264305,1714670853374,-999.0,0.00039999,31]
[325264306,1714670853394,-999.0,0.00039999,34]
[325264307,1714670853413,-999.0,0.00039999,37]
[325264308,1714670853433,-999.0,0.00039999,40]
[325264309,1714670853454,-999.0,0.00039999,43]
[325264310,1714670853475,-999.0,0.00039999,46]
[325264311,1714670853496,-815.40093163,0.0004,7]
[325264312,1714670853515,-103302.72897806,0.0004,120]
[325264329,1714671032675,-901.21646744,0.000266,2]
[325264392,1714671038985,-150.0,0.00029026,3]
[325264393,1714671038995,-150.0,0.00031194,3]
[325264394,1714671039004,-150.0,0.00033362,5]
[325264395,1714671039013,-150.0,0.00035531,7]
[325264396,1714671039022,-512.49376516,0.000399,31]
[325264397,1714671039031,-158.20580885,0.000399,2]
[325264398,1714671039040,-55555.0,0.000399,5]
[325264399,1714671039050,-1589.26,0.0003999,3]
[325264400,1714671039059,-2481.37,0.0003999,3]
[325264401,1714671039068,-2067.81,0.0003999,3]
[325264402,1714671039080,-1723.17,0.0003999,3]
[325264403,1714671039089,-407.70046582,0.0004,7]
[325264404,1714671039098,-109851.42187196,0.0004,120]
[325264439,1714671040890,-116974.81695,0.0004,120]
[325264528,1714671043926,-1893.68166076,0.0004,120]
[325264535,1714671046673,-20613.34536,0.0004,120]
[325264536,1714671046739,-24698.29366366,0.0004,120]
[325264537,1714671046748,-2729.9056,0.0004,4]
[325264538,1714671046758,-874.0,0.0004,3]
[325264539,1714671046857,-2000.0,0.0004,2]
[325264540,1714671046870,-154.87542473,0.0004,4]
[325264541,1714671046881,-1704.96300101,0.0004,30]
[325264542,1714671046890,-10000.0,0.0004,7]
[325264543,1714671046900,-303.86860129,0.0004,15]
[325264544,1714671046910,-241.04035742,0.0004,120]
[325264545,1714671046920,-2000.0,0.0004,2]
[325264546,1714671046931,-2000.0,0.0004,2]
[325264547,1714671046942,-530.0,0.00040455,2]
[325264548,1714671046953,-150.0,0.00040455,2]
[325264549,1714671046963,-166.865762,0.00040548,2]
[325264550,1714671046975,-161.98182993,0.00040682,3]
[325264551,1714671046984,-150.0,0.00040828,2]
[325264552,1714671046994,-445.43948424,0.00040885,2]
[325264553,1714671047004,-588.0,0.000409,30]
[325264554,1714671047013,-4388.78475958,0.00041,2]
[325264555,1714671047022,-253.65805869,0.00041,2]
[325264556,1714671047033,-150.5,0.0004107,35]
[325264557,1714671047043,-150.5,0.0004108,35]
[325264558,1714671047052,-150.5,0.0004109,35]
[325264559,1714671047061,-154.79876161,0.00041091,4]
[325264560,1714671047070,-693.45686249,0.00041091,4]
[325264561,1714671047080,-220.93587945,0.00041092,4]
[325264562,1714671047089,-8529.21181525,0.00041092,4]
[325264563,1714671047098,-159.21978257,0.00041092,4]
[325264564,1714671047107,-500.0,0.00041095,120]
[325264565,1714671047116,-500.0,0.00041095,7]
[325264566,1714671047126,-500.0,0.00041095,7]
[325264567,1714671047135,-500.0,0.00041095,7]
[325264568,1714671047144,-500.0,0.00041095,7]
[325264569,1714671047153,-500.0,0.00041095,7]
[325264570,1714671047162,-500.0,0.00041095,7]
[325264571,1714671047170,-500.0,0.00041095,7]
[325264572,1714671047180,-500.0,0.00041095,7]
[325264573,1714671047189,-503.17872486,0.00041095,7]
[325264574,1714671047198,-500.66474189,0.00041095,2]
[325264575,1714671047207,-503.02963425,0.00041095,2]
[325264576,1714671047216,-500.0,0.00041095,7]
[325264577,1714671047226,-500.0,0.00041095,7]
[325264578,1714671047236,-500.0,0.00041095,7]
[325264579,1714671047245,-500.0,0.00041095,7]
[325264580,1714671047254,-501.51436934,0.00041095,7]
[325264581,1714671047263,-500.0,0.00041095,7]
[325264582,1714671047274,-500.0,0.00041095,7]
[325264583,1714671047284,-581.31483227,0.00041095,7]
[325264584,1714671047294,-501.4095882,0.00041095,7]
[325264585,1714671047303,-1000.0,0.00041095,7]
[325264586,1714671047312,-500.0,0.00041095,7]
[325264587,1714671047321,-500.0,0.00041095,7]
[325264588,1714671047332,-500.0,0.00041095,7]
[325264589,1714671047341,-500.0,0.00041095,7]
[325264590,1714671047351,-500.0,0.00041095,7]
[325264591,1714671047360,-500.0,0.00041095,7]
[325264592,1714671047373,-500.0,0.00041095,7]
[325264593,1714671047382,-500.0,0.00041095,7]
[325264594,1714671047391,-500.0,0.00041095,7]
[325264595,1714671047400,-500.0,0.00041095,7]
[325264596,1714671047410,-500.0,0.00041095,7]
[325264597,1714671047420,-500.0,0.00041095,7]
[325264598,1714671047429,-270.94675668,0.00041095,7]
[325264599,1714671047440,-518.90594682,0.00041095,7]
[325264600,1714671047449,-501.47460101,0.00041095,7]
[325264601,1714671047460,-500.0,0.00041095,7]
[325264602,1714671047469,-507.82913235,0.00041095,7]
[325264603,1714671047477,-500.0,0.00041095,3]
[325264604,1714671047486,-500.0,0.00041095,3]
[325264605,1714671047495,-500.0,0.00041095,3]
[325264606,1714671047504,-500.0,0.00041095,3]
[325264607,1714671047513,-631.90086262,0.00041095,3]
[325264608,1714671047522,-500.0,0.00041095,7]
[325264609,1714671047531,-500.0,0.00041095,7]
[325264610,1714671047540,-500.0,0.00041095,7]
[325264611,1714671047549,-501.09522662,0.00041095,7]
[325264612,1714671047559,-500.0,0.00041095,7]
[325264613,1714671047567,-500.0,0.00041095,7]
[325264614,1714671047577,-500.0,0.00041095,7]
[325264615,1714671047587,-501.01286397,0.00041095,7]
[325264616,1714671047596,-500.0,0.00041095,7]
[325264617,1714671047604,-500.0,0.00041095,7]
[325264618,1714671047614,-500.0,0.00041095,7]
[325264619,1714671047623,-506.46723585,0.00041095,7]
[325264620,1714671047632,-436.4875944,0.00041095,7]
[325264621,1714671047642,-500.0,0.00041095,7]
[325264622,1714671047651,-500.0,0.00041095,7]
[325264623,1714671047660,-500.0,0.00041095,7]
[325264624,1714671047669,-500.0,0.00041095,7]
[325264625,1714671047679,-500.0,0.00041095,7]
[325264626,1714671047689,-500.0,0.00041095,7]
[325264627,1714671047698,-395.6,0.00041095,7]
[325264628,1714671047707,-500.0,0.00041095,7]
[325264629,1714671047717,-502.12711159,0.00041095,7]
[325264630,1714671047726,-519.58665218,0.00041095,2]
[325264631,1714671047736,-501.70381947,0.00041095,7]
[325264632,1714671047746,-602.17387135,0.00041095,7]
[325264633,1714671047755,-501.58893818,0.00041095,7]
[325264634,1714671047765,-500.0,0.00041095,7]
[325264635,1714671047775,-500.0,0.00041095,7]
[325264636,1714671047784,-500.0,0.00041095,7]
[325264637,1714671047794,-500.0,0.00041095,7]
[325264638,1714671047804,-500.91855652,0.00041095,7]
[325264639,1714671047813,-500.0,0.00041095,7]
[325264640,1714671047823,-500.0,0.00041095,7]
[325264641,1714671047834,-500.0,0.00041095,7]
[325264642,1714671047843,-500.0,0.00041095,7]
[325264643,1714671047851,-505.32670541,0.00041095,7]
[325264644,1714671047860,-169.10223574,0.00041095,7]
[325264645,1714671047869,-500.0,0.00041095,7]
[325264646,1714671047878,-520.35494924,0.00041095,7]
[325264647,1714671047887,-500.0,0.00041095,7]
[325264648,1714671047896,-500.0,0.00041095,7]
[325264649,1714671047905,-500.0,0.00041095,7]
[325264650,1714671047915,-384.89081934,0.00041095,7]
[325264651,1714671047924,-275.21381003,0.00041095,7]
[325264652,1714671047933,-500.0,0.00041095,7]
[325264653,1714671047942,-500.0,0.00041095,7]
[325264654,1714671047951,-627.8913676,0.00041095,7]
[325264655,1714671047960,-500.74749198,0.00041095,7]
[325264656,1714671047970,-500.0,0.00041095,7]
[325264657,1714671047979,-500.0,0.00041095,7]
[325264658,1714671047988,-500.0,0.00041095,7]
[325264659,1714671047997,-466.28797343,0.00041095,7]
[325264660,1714671048006,-501.31174153,0.00041095,7]
[325264661,1714671048015,-500.0,0.00041095,7]
[325264662,1714671048025,-500.0,0.00041095,7]
[325264663,1714671048034,-500.0,0.00041095,7]
[325264664,1714671048043,-500.0,0.00041095,7]
[325264665,1714671048052,-500.0,0.00041095,7]
[325264666,1714671048061,-269.44928437,0.00041095,7]
[325264667,1714671048069,-151.0,0.00041095,2]
[325264668,1714671048078,-151.0,0.00041095,2]
[325264669,1714671048088,-151.0,0.00041095,2]
[325264670,1714671048097,-247.0,0.00041095,2]
[325264671,1714671048108,-500.0,0.00041095,7]
[325264672,1714671048118,-500.0,0.00041095,7]
[325264673,1714671048128,-597.54156325,0.00041095,7]
[325264674,1714671048137,-500.0,0.00041095,7]
[325264675,1714671048146,-500.0,0.00041095,7]
[325264676,1714671048156,-500.0,0.00041095,7]
[325264677,1714671048165,-501.99450005,0.00041095,7]
[325264678,1714671048175,-500.0,0.00041095,7]
[325264679,1714671048187,-501.20724763,0.00041095,7]
[325264680,1714671048197,-464.42625984,0.00041095,7]
[325264681,1714671048206,-500.0,0.00041095,7]
[325264682,1714671048217,-500.0,0.00041095,7]
[325264683,1714671048228,-500.0,0.00041095,7]
[325264684,1714671048239,-500.0,0.00041095,7]
[325264685,1714671048248,-500.0,0.00041095,7]
[325264686,1714671048258,-500.0,0.00041095,7]
[325264687,1714671048269,-500.0,0.00041095,7]
[325264688,1714671048280,-500.0,0.00041095,7]
[325264689,1714671048290,-503.07929307,0.00041095,7]
[325264690,1714671048300,-500.0,0.00041095,7]
[325264691,1714671048310,-500.0,0.00041095,7]
[325264692,1714671048320,-500.0,0.00041095,7]
[325264693,1714671048330,-500.0,0.00041095,7]
[325264694,1714671048343,-502.12143945,0.00041095,7]
[325264695,1714671048352,-491.38590853,0.00041095,7]
[325264696,1714671048361,-500.0,0.00041095,7]
[325264697,1714671048371,-500.0,0.00041095,7]
[325264698,1714671048383,-500.0,0.00041095,7]
[325264699,1714671048392,-500.0,0.00041095,7]
[325264700,1714671048401,-505.19022821,0.00041095,7]
[325264701,1714671048411,-500.0,0.00041095,7]
[325264702,1714671048421,-500.0,0.00041095,7]
[325264703,1714671048431,-500.0,0.00041095,7]
[325264704,1714671048440,-500.0,0.00041095,7]
[325264705,1714671048449,-500.0,0.00041095,7]
[325264706,1714671048458,-500.0,0.00041095,7]
[325264707,1714671048468,-500.0,0.00041095,7]
[325264708,1714671048477,-500.0,0.00041095,7]
[325264709,1714671048558,-500.0,0.00041095,7]
[325264710,1714671048567,-500.0,0.00041095,7]
[325264711,1714671048576,-500.0,0.00041095,7]
[325264712,1714671048587,-500.0,0.00041095,7]
[325264713,1714671048596,-500.0,0.00041095,7]
[325264714,1714671048605,-500.0,0.00041095,7]
[325264715,1714671048614,-500.0,0.00041095,7]
[325264716,1714671048623,-475.28985324,0.00041095,7]
[325264717,1714671048633,-500.0,0.00041095,7]
[325264718,1714671048642,-500.0,0.00041095,7]
[325264719,1714671048651,-500.0,0.00041095,7]
[325264720,1714671048661,-500.0,0.00041095,7]
[325264721,1714671048670,-500.0,0.00041095,7]
[325264722,1714671048679,-504.53595622,0.00041095,7]
[325264723,1714671048689,-500.0,0.00041095,7]
[325264724,1714671048698,-500.0,0.00041095,7]
[325264725,1714671048707,-500.0,0.00041095,7]
[325264726,1714671048717,-500.0,0.00041095,7]
[325264727,1714671048726,-500.0,0.00041095,7]
[325264728,1714671048735,-500.0,0.00041095,7]
[325264729,1714671048744,-500.0,0.00041095,7]
[325264730,1714671048754,-500.0,0.00041095,7]
[325264731,1714671048763,-500.0,0.00041095,7]
[325264732,1714671048772,-500.0,0.00041095,7]
[325264733,1714671048781,-500.0,0.00041095,7]
[325264734,1714671048790,-500.0,0.00041095,7]
[325264735,1714671048799,-500.0,0.00041095,7]
[325264736,1714671048808,-500.0,0.00041095,7]
[325264737,1714671048817,-500.0,0.00041095,7]
[325264738,1714671048826,-500.0,0.00041095,7]
[325264739,1714671048836,-500.0,0.00041095,7]
[325264740,1714671048846,-502.49967119,0.00041095,7]
[325264741,1714671048855,-500.0,0.00041095,7]
[325264742,1714671048864,-500.0,0.00041095,7]
[325264743,1714671048872,-500.0,0.00041095,7]
[325264744,1714671048881,-500.0,0.00041095,7]
[325264745,1714671048891,-500.0,0.00041095,7]
[325264746,1714671048900,-500.0,0.00041095,7]
[325264747,1714671048909,-369.80507358,0.00041095,7]
[325264748,1714671048918,-505.17800586,0.00041095,7]
[325264749,1714671048927,-500.0,0.00041095,7]
[325264750,1714671048936,-500.0,0.00041095,7]
[325264751,1714671048945,-500.0,0.00041095,7]
[325264752,1714671048954,-261.95819451,0.00041095,7]
[325264753,1714671048964,-500.0,0.00041095,7]
[325264754,1714671048973,-500.0,0.00041095,7]
[325264755,1714671048982,-500.0,0.00041095,7]
[325264756,1714671048991,-500.0,0.00041095,7]
[325264757,1714671049001,-500.0,0.00041095,7]
[325264758,1714671049010,-500.0,0.00041095,7]
[325264759,1714671049019,-500.0,0.00041095,7]
[325264760,1714671049028,-635.48415198,0.00041095,7]
[325264761,1714671049038,-500.0,0.00041095,7]
[325264762,1714671049048,-167.66220394,0.00041095,7]
[325264763,1714671049057,-502.80835986,0.00041095,7]
[325264764,1714671049068,-500.0,0.00041095,7]
[325264765,1714671049078,-500.0,0.00041095,7]
[325264766,1714671049090,-333.2249992,0.00041095,7]
[325264767,1714671049099,-500.0,0.00041095,7]
[325264768,1714671049109,-500.0,0.00041095,7]
[325264769,1714671049119,-500.0,0.00041095,7]
[325264770,1714671049129,-500.0,0.00041095,7]
[325264771,1714671049139,-581.52368733,0.00041095,7]
[325264772,1714671049148,-500.0,0.00041095,7]
[325264773,1714671049157,-500.0,0.00041095,7]
[325264774,1714671049167,-499.85306588,0.00041095,7]
[325264775,1714671049177,-177.28488026,0.00041095,7]
[325264776,1714671178410,270.906492,0.00019815,2]
[325264787,1714672232341,-165.538538,0.00028493,2]
[325264788,1714672232351,-160.940101,0.00028493,2]
[325264789,1714672232361,-166.5,0.00029174,3]
[325264790,1714672232370,-323.0,0.0003,2]
[325264791,1714672232379,-166.5,0.00031329,3]
[325264792,1714672232388,-166.5,0.00033483,5]
[325264793,1714672232397,-166.5,0.00035638,7]
[325264794,1714672232407,-186.976829,0.00035891,120]
[325264795,1714672232417,-2929.2665084,0.00035999,2]
[325264796,1714672232428,-166.5,0.00037793,14]
[325264797,1714672232437,-160.940101,0.00038356,2]
[325264798,1714672232446,-154.94984669,0.00039036,4]
[325264799,1714672232455,-166.5,0.00039948,14]
[325264800,1714672232465,-5460.88699735,0.00039998,4]
[325264801,1714672232474,-1132.53381297,0.0004,2]
[325264802,1714672232483,-304.65020211,0.0004,15]
[325264803,1714672232493,-3412.382,0.0004,4]
[325264804,1714672232502,-1355.0,0.0004,2]
[325264805,1714672232511,-493.0,0.00040029,2]
[325264806,1714672232520,-150.0,0.00040029,2]
[325264807,1714672232530,-150.161,0.00040029,2]
[325264808,1714672232540,-155.29350389,0.00040684,3]
[325264809,1714672232550,-307.6798797,0.00040849,2]
[325264810,1714672232559,-238.0912,0.0004089,2]
[325264811,1714672232568,-251.47719257,0.00040894,35]
[325264812,1714672232577,-588.0,0.000409,30]
[325264813,1714672232586,-469.52056519,0.00040985,2]
[325264814,1714672232595,-251.47719257,0.00040994,35]
[325264815,1714672232604,-608.44848588,0.00040994,2]
[325264816,1714672232613,-608.44848588,0.00040994,2]
[325264817,1714672232622,-608.44848588,0.00040995,2]
[325264818,1714672232631,-608.44848588,0.00040995,2]
[325264819,1714672232640,-608.44848588,0.00040995,2]
[325264820,1714672232649,-150.092861,0.00041,2]
[325264821,1714672232658,-817.2,0.00041083,3]
[325264822,1714672232668,-3435.24,0.00041085,3]
[325264823,1714672232681,-603.84859883,0.00041092,4]
[325264824,1714672232690,-1937.02871163,0.00041092,2]
[325264825,1714672232699,-164.0768642,0.00041093,4]
[325264826,1714672232708,-59218.78804834,0.00041093,4]
[325264827,1714672232719,-3477.65277912,0.00041094,4]
[325264828,1714672232728,-526.91179477,0.00041094,4]
[325264829,1714672232737,-150.0,0.00041094,2]
[325264830,1714672232747,-999.0,0.00041094,7]
[325264831,1714672232756,-999.0,0.00041094,10]
[325264832,1714672232766,-999.0,0.00041094,13]
[325264833,1714672232775,-999.0,0.00041094,16]
[325264834,1714672232785,-999.0,0.00041094,19]
[325264835,1714672232794,-999.0,0.00041094,22]
[325264836,1714672232803,-999.0,0.00041094,25]
[325264837,1714672232812,-999.0,0.00041094,28]
[325264838,1714672232821,-999.0,0.00041094,31]
[325264839,1714672232831,-594.74,0.00041094,34]
[325264840,1714672232840,-611.55069872,0.00041095,7]
[325264841,1714672232849,-500.0,0.00041095,7]
[325264842,1714672232858,-500.0,0.00041095,7]
[325264843,1714672232867,-551.46003895,0.00041095,7]
[325264844,1714672232876,-341.10035665,0.00041095,7]
[325264845,1714672232885,-500.0,0.00041095,7]
[325264846,1714672232894,-501.12785563,0.00041095,7]
[325264847,1714672232903,-500.0,0.00041095,7]
[325264848,1714672232912,-500.0,0.00041095,7]
[325264849,1714672232922,-500.0,0.00041095,7]
[325264850,1714672232932,-500.0,0.00041095,7]